Cogmind - Beta 11 X8 @@@ ROGUE MODE // 2021.11.10 @ 01:13:02 Player: Runia Result: Destroyed by Y-45 Defender with Heavy Assault Rifle Performance ------------- Evolutions (2) 1000 Regions Visited (5) 1000 Robots Destroyed (53) 265 Value Destroyed (1229) 1229 Prototype IDs (26) 520 Alien Tech Used (0) 0 Bonus (235) 235 TOTAL SCORE: 4249 Bonus ------- Follower Combat Kills 78 Aligned with FarCom 300 Friendly Fire -143 Cogmind --------- Core Integrity 0/550 Matter 300/300 Energy 100/100 System Corruption 0% Temperature Cool (9) Movement Core (350) Ox6 Location -8/Materials Parts ------- > --- POWER (1) -------- (None) > --- PROPULSION (3) --- (None) > --- UTILITY (4) ------ Large Storage Unit Advanced Visual Processing Unit > --- WEAPON (3) ------- (None) > --- INVENTORY (15) --- Ion Engine Improved Carbon-fiber Leg Improved Sensor Array Experimental Sensor Array Hardened Light Armor Plating Hardened Light Armor Plating Hardened Light Armor Plating Hardened Light Armor Plating Gatling Laser Gatling Laser Light Assault Rifle Grenade Launcher Grenade Launcher Missile Launcher Peak State ------------ > --- POWER ------------ Light Deuterium Engine > --- PROPULSION ------- Improved Carbon-fiber Leg Improved Carbon-fiber Leg Improved Carbon-fiber Leg > --- UTILITY ---------- Improved Heat Sink Large Storage Unit Advanced Visual Processing Unit Hardened Medium Armor Plating > --- WEAPON ----------- Gatling Laser Gatling Laser Beamcaster > --- INVENTORY -------- Ion Engine Ion Engine Improved Treads Improved Carbon-fiber Leg Experimental Sensor Array Hardened Light Armor Plating Hardened Light Armor Plating Hardened Light Armor Plating Hardened Light Armor Plating Gatling Laser Light Assault Rifle Light Assault Rifle Grenade Launcher Grenade Launcher Grenade Launcher [Rating: 41] Favorites ----------- Power Ion Engine Engine Ion Engine Propulsion Light Treads Treads Light Treads Leg Improved Carbon-fiber Leg Wheel Compact Wheel Utility Large Storage Unit Device Improved Heat Sink Storage Large Storage Unit Processor Advanced Visual Processing Unit Protection Hardened Light Armor Plating Weapon Light Assault Rifle Energy Gun Beamcaster Ballistic Gun Light Assault Rifle Launcher Grenade Launcher Build | -11 -10 -10 -10 -9 -8 ------- Run | Scr Mat Min Exi Min Mat Slots Evolved 4 | . . . . . 4 Power . | . . . . . . Propulsion 1 | . . . . . 1 Utility 2 | . . . . . 2 Weapon 1 | . . . . . 1 Parts Attached 48 | 2 10 10 . 4 22 Power 3 | . 1 . . . 2 Engine 3 | . 1 . . . 2 Core . | . . . . . . Reactor . | . . . . . . Propulsion 14 | 2 3 1 . 1 7 Treads 9 | 2 3 1 . 1 2 Leg 4 | . . . . . 4 Wheel 1 | . . . . . 1 Hover . | . . . . . . Flight . | . . . . . . Utility 9 | . 2 . . . 7 Device 3 | . . . . . 3 Storage 1 | . 1 . . . . Processor 1 | . . . . . 1 Hackware . | . . . . . . Protection 4 | . 1 . . . 3 Artifact . | . . . . . . Weapon 22 | . 4 9 . 3 6 Energy Gun 4 | . . . . . 4 Energy Cannon . | . . . . . . Ballistic Gun 13 | . 3 6 . 2 2 Ballistic Cannon . | . . . . . . Launcher 5 | . 1 3 . 1 . Special Weapon . | . . . . . . Impact Weapon . | . . . . . . Slashing Weapon . | . . . . . . Piercing Weapon . | . . . . . . Special Melee Weapon . | . . . . . . Unidentified Prototypes 1 | . . . . . 1 Parts Lost 13 | . 1 1 . . 11 Power 2 | . . . . . 2 Propulsion 5 | . 1 1 . . 3 Utility 2 | . . . . . 2 Weapon 4 | . . . . . 4 Highest Loss Streak 10 | . 1 1 . . 10 Average Slot Usage (%) 96 | . 94 99 100 100 89 Engine 13 | . 14 14 14 14 8 Treads 23 | . 27 27 28 28 5 Leg 2 | . . . . . 15 Storage 13 | . 14 14 14 14 9 Processor 1 | . . . . . 8 Protection 12 | . 9 14 14 14 12 Energy Gun 1 | . . . . . 11 Ballistic Gun 24 | . 28 27 28 27 10 Naked Turns . | . . . . . . Heaviest Build 47 | 13 33 33 32 34 47 Greatest Support 54 | 40 40 40 40 43 54 Greatest Overweight (x) 1 | . . . . . 1 Average Overweight (x) . | . . . . . . Largest Inventory Capacity 15 | 8 15 15 15 15 15 Average Capacity 14 | 8 11 15 15 15 15 Most Carried 15 | 6 15 15 12 13 15 Average Carried 11 | 4 8 12 12 12 14 Final Capacity 15 | 8 15 15 15 15 15 Final Carried 15 | 2 15 12 12 13 14 Class Distribution -------------------- 91% | Mutant 8% | Tank Dominant Class ---------------- Mutant | -10/Materials Mutant | -10/Mines Mutant | -10/Exiles Mutant | -9/Mines Tank | -8/Materials Resources | -11 -10 -10 -10 -9 -8 ----------- Run | Scr Mat Min Exi Min Mat Matter Collected 1193 | 190 442 150 . 187 224 Remotely . | . . . . . . Salvage Created 1533 | . 733 152 . 62 586 Parts 97 | . 47 17 . 5 28 Haulers Intercepted 2 | . 2 . . . . Recyclers Shooed 2 | . . 1 . . 1 Parts Field Recycled . | . . . . . . Retrieved Matter . | . . . . . . Parts Self-Destructed . | . . . . . . Prevented . | . . . . . . Kills | -11 -10 -10 -10 -9 -8 ------- Run | Scr Mat Min Exi Min Mat Combat Hostiles Destroyed 46 | . 18 10 . 10 8 Guns 31 | . 15 3 . 5 8 AOE 15 | . 3 7 . 5 . Classes Destroyed 11 | . 7 . . 2 2 Worker 2 | . 2 . . . . Builder 2 | . 1 . . . 1 Hauler 2 | . 2 . . . . Recycler 2 | . 1 . . . 1 Watcher 3 | . 1 . . . 2 Swarmer 19 | . 9 6 . 4 . Grunt 19 | . 9 4 . . 6 Demolisher 1 | . . . . 1 . Specialist 2 | . . . . . 2 Hunter 1 | . . . . . 1 Assembled 5 | . . . . 5 . Best Kill Streak 6 | . 6 3 . 5 3 Combat Bots Only 6 | . 6 3 . 5 3 Max Kills in Single Turn 3 | . 2 2 . 3 2 Gunslinging . | . . . . . . Exploded 3 | . 2 2 . 3 . Melee . | . . . . . . Uniques/NPCs Destroyed . | . . . . . . Combat | -11 -10 -10 -10 -9 -8 -------- Run | Scr Mat Min Exi Min Mat Damage Taken 3097 | . 507 413 . 311 1866 Core 737 | . 83 50 . 53 551 Absorbed by Shields . | . . . . . . Core Remaining (%) 62 | 100 . . . 25 . Volleys Fired 165 | . 77 19 1 30 38 Largest 3 | . 2 2 2 2 3 Hottest 235 | . 40 40 40 40 235 Shots Fired 337 | . 151 29 2 57 98 Gun 323 | . 149 20 2 54 98 Cannon . | . . . . . . Launcher 14 | . 2 9 . 3 . Special . | . . . . . . Kinetic 259 | . 149 20 2 54 34 Thermal 64 | . . . . . 64 Explosive 14 | . 2 9 . 3 . Electromagnetic . | . . . . . . Robot Hit Streak 14 | . 9 11 13 14 9 Robot Miss Streak 9 | . 9 3 . 3 5 Penetration Max . | . . . . . . Secondary Targets 4 | . 2 1 . 1 . Max Gunslinging Chain 1 | . 1 1 . 1 . Shots Hit Robots 203 | . 87 18 2 34 62 Core Hits 110 | . 42 17 . 18 33 Critical Kills . | . . . . . . Critical Parts Destroyed 1 | . . . . 1 . Critical Strikes 5 | . . . . 1 4 Burn 4 | . . . . . 4 Destroy 1 | . . . . 1 . Melee Attacks . | . . . . . . Impact . | . . . . . . Slashing . | . . . . . . Piercing . | . . . . . . Sneak Attacks . | . . . . . . Combat Hostiles . | . . . . . . Follow-up Attacks . | . . . . . . Damage Inflicted 3287 | . 1012 604 16 498 1157 Guns 2452 | . 899 115 16 274 1148 Cannons . | . . . . . . Explosions 826 | . 113 489 . 224 . Melee . | . . . . . . Ramming 9 | . . . . . 9 Kinetic 1453 | . 899 115 16 274 149 Thermal 999 | . . . . . 999 Explosive 826 | . 113 489 . 224 . Electromagnetic . | . . . . . . Impact . | . . . . . . Slashing . | . . . . . . Piercing . | . . . . . . Highest Corruption 1 | . 1 1 1 1 . Average Corruption 1 | . 1 1 1 1 . Corruption Purged . | . . . . . . Effects 9 | . 8 . 1 . . Message Errors 5 | . 4 . 1 . . Energy Discharges 1 | . 1 . . . . Data Loss (minor) 2 | . 2 . . . . Weapon Failures 1 | . 1 . . . . Overload Shots . | . . . . . . Overflow Damage 15 | . . 15 . . . Projectiles . | . . . . . . Explosions 15 | . . 15 . . . Melee . | . . . . . . Knockbacks . | . . . . . . Impact . | . . . . . . Kinetic . | . . . . . . Secondary . | . . . . . . Self-Inflicted Damage 190 | . . 129 . 61 . Shots 7 | . . 5 . 2 . Rammed . | . . . . . . Targets Rammed 1 | . . . . . 1 Kicked 1 | . . . . . 1 Crushed . | . . . . . . Highest Temperature 303 | . 40 65 10 30 303 Average Temperature 69 | . 11 26 7 12 117 Received Heat Transfer 777 | . 102 108 . . 567 Effects 7 | . . . . . 7 Interference 7 | . . . . . 7 Siege Activations . | . . . . . . Robots Corrupted . | . . . . . . Combat Hostiles . | . . . . . . Parts Fried . | . . . . . . Impact Corruptions . | . . . . . . Robots Melted . | . . . . . . Combat Hostiles . | . . . . . . Parts Melted 7 | . . . . . 7 Heat Transferred 2322 | . . . . . 2322 Parts Sabotaged . | . . . . . . Parts Stolen . | . . . . . . Parts Stripped . | . . . . . . Power Chain Reactions . | . . . . . . Missiles Intercepted . | . . . . . . Alert | -11 -10 -10 -10 -9 -8 ------- Run | Scr Mat Min Exi Min Mat Peak Influence 345 | . 345 237 . 90 247 Initial 42 | . . 42 . . . Average 87 | . 111 126 . 18 112 Maximum Alert Level 1 | . 1 1 . . 1 Low Security (%) 88 | 100 85 84 . 100 76 Level 1 11 | . 14 15 . . 23 Level 2 . | . . . . . . Level 3 . | . . . . . . Level 4 . | . . . . . . Level 5 . | . . . . . . High Security . | . . . . . . Max Security . | . . . . . . Squads Dispatched 11 | . 5 . . . 6 Investigation 3 | . 2 . . . 1 Extermination . | . . . . . . Reinforcement 8 | . 3 . . . 5 Assault . | . . . . . . Garrison . | . . . . . . Intercept . | . . . . . . Construction Impeded 1 | . . . . . 1 Haulers Reinforced . | . . . . . . Active Scanning Responses . | . . . . . . Cargo Convoy Interrupts . | . . . . . . Stealth | -11 -10 -10 -10 -9 -8 --------- Run | Scr Mat Min Exi Min Mat Distress Signals 3 | . 1 . . . 2 Communications Jammed . | . . . . . . Distress Signals . | . . . . . . Times Spotted 75 | . 36 9 . 10 20 Peak Tracking Total 7 | . 4 3 2 7 7 Tactical Retreats 3 | . 2 . . . 1 Traps | -11 -10 -10 -10 -9 -8 ------- Run | Scr Mat Min Exi Min Mat Traps Triggered 1 | . 1 . . . . Indirectly . | . . . . . . Trap Hack Attempts . | . . . . . . Triggered . | . . . . . . Disarmed . | . . . . . . Reprogrammed . | . . . . . . Reused . | . . . . . . Traps Extracted . | . . . . . . Installed . | . . . . . . Triggered . | . . . . . . Machines | -11 -10 -10 -10 -9 -8 ---------- Run | Scr Mat Min Exi Min Mat Machines Disabled 2 | . . . . . 2 Max in Single Turn 1 | . . . . . 1 Machines Sabotaged . | . . . . . . Garrisons Compromised . | . . . . . . Overloaded Fab Kills . | . . . . . . Hacking | -11 -10 -10 -10 -9 -8 --------- Run | Scr Mat Min Exi Min Mat Machines Accessed 14 | . 7 1 2 . 4 Terminals 8 | . 5 1 . . 2 Fabricators . | . . . . . . Repair Stations 1 | . . . . . 1 Recycling Units 2 | . 2 . . . . Scanalyzers 1 | . . . . . 1 Garrison Access . | . . . . . . Total Hacks 37 | . 11 7 2 . 17 Successful 24 | . 5 2 2 . 15 Failed 13 | . 6 5 . . 2 Catastrophic . | . . . . . . Database Lockouts . | . . . . . . Manual 12 | . 5 6 1 . . Terminals 18 | . 6 7 . . 5 Fabricators . | . . . . . . Repair Stations 9 | . . . . . 9 Recycling Units 5 | . 5 . . . . Scanalyzers 3 | . . . . . 3 Garrison Access . | . . . . . . Terminal Hacks 12 | . 3 2 2 . 5 Record 1 | . . . 1 . . Prototype ID Bank 1 | . . 1 . . . Branch Access Points 1 | . . . . . 1 Alert Level 3 | . . . . . 3 Unreport Threat 1 | . 1 . . . . Locate Traps 1 | . 1 . . . . Hauler Manifests 2 | . 1 . . . 1 Zone Layout 1 | . . 1 . . . EX-Prototype ID Bank 1 | . . . 1 . . Fabricator Hacks . | . . . . . . Repair Station Hacks 7 | . . . . . 7 Scan Component 4 | . . . . . 4 Repair 3 | . . . . . 3 Recycling Unit Hacks 1 | . 1 . . . . Report Inventory 1 | . 1 . . . . Scanalyzer 3 | . . . . . 3 Insert Component 1 | . . . . . 1 Analyze 2 | . . . . . 2 Garrison Access Hacks . | . . . . . . Unauthorized Hacks 1 | . 1 . . . . Terminals . | . . . . . . Fabricators . | . . . . . . Repair Stations . | . . . . . . Recycling Units 1 | . 1 . . . . Tunnel 1 | . 1 . . . . Scanalyzers . | . . . . . . Garrison Access . | . . . . . . Data Cores Recovered . | . . . . . . Used . | . . . . . . Hacking Detections 10 | . 6 1 . . 3 Full Trace Events 2 | . 1 . . . 1 Feedback Events 1 | . 1 . . . . Corruption 1 | . 1 . . . . Feedback Blocked . | . . . . . . Robot Schematics Acquired . | . . . . . . Robots Built . | . . . . . . Authchips . | . . . . . . Time . | . . . . . . Total Robot Build Rating . | . . . . . . Part Schematics Acquired 1 | . . . . . 1 Parts Built . | . . . . . . Authchips . | . . . . . . Time . | . . . . . . Total Part Build Rating . | . . . . . . Parts Repaired 3 | . . . . . 3 Time 102 | . . . . . 102 Parts Recycled . | . . . . . . Recycled Matter . | . . . . . . Retrieved Matter . | . . . . . . Retrieved Components . | . . . . . . Parts Scanalyzed 1 | . . . . . 1 Part Schematics Acquired 1 | . . . . . 1 Parts Damaged . | . . . . . . Bothacking | -11 -10 -10 -10 -9 -8 ------------ Run | Scr Mat Min Exi Min Mat Used RIF Installer . | . . . . . . Robots Hacked . | . . . . . . Non-combat . | . . . . . . Combat . | . . . . . . Robot Hacks Applied . | . . . . . . Relay Couplers Released . | . . . . . . Fabnet Peak Effective % . | . . . . . . Robots Rewired . | . . . . . . Allies Hacked . | . . . . . . Hacks Repelled . | . . . . . . Allies | -11 -10 -10 -10 -9 -8 -------- Run | Scr Mat Min Exi Min Mat Total Allies 4 | . . 1 . 3 . Largest Group 3 | . . 1 1 3 3 Highest-Rated Group 40 | . . 31 31 40 40 Highest-Rated Ally 31 | . . 31 31 16 16 Total Orders . | . . . . . . Ally Attacks 28 | . . . . . 28 Total Damage 282 | . . . . . 282 Kills 3 | . . . . . 3 Allies Corrupted . | . . . . . . Allies Melted . | . . . . . . Intel | -11 -10 -10 -10 -9 -8 ------- Run | Scr Mat Min Exi Min Mat Robot Analysis Total . | . . . . . . Derelict Logs Recovered 3 | . . 2 . 1 . Drone Launches . | . . . . . . Drone Recoveries . | . . . . . . Exploration | -11 -10 -10 -10 -9 -8 ------------- Run | Scr Mat Min Exi Min Mat Turns Passed 4425 | 5 1289 774 395 1189 773 Spaces Moved 2363 | 1 638 446 246 691 341 Core . | . . . . . . Treads 2126 | 1 638 446 246 691 104 Legs 237 | . . . . . 237 Wheels . | . . . . . . Hover . | . . . . . . Flight . | . . . . . . Fastest Speed 120 | 160 160 160 160 160 120 Average Speed 156 | 160 160 160 160 160 134 Slowest Speed 240 | 160 160 160 160 160 240 Overloaded Moves . | . . . . . . Propulsion Burnouts . | . . . . . . Robots Hopped . | . . . . . . Cave-ins Triggered . | . . . . . . Exploration Rate (%) 61 | 2 92 96 60 97 23 Regions Visited 5 Branch Regions 3 Pre-discovered Areas 2 | . 1 . 1 . . Known Exits Taken . | . . . . . . Unknown Exits Taken 5 | 1 1 1 1 1 . Scrap Searched 4 | . . 2 . 2 . Spaces Dug 7 | . . . . 7 . Terrain Destroyed 72 | . 6 51 . 15 . Melee . | . . . . . . Projectile . | . . . . . . AOE 72 | . 6 51 . 15 . Terrain Rammed . | . . . . . . Walls Destroyed . | . . . . . . Machines Disabled . | . . . . . . Actions | -11 -10 -10 -10 -9 -8 --------- Run | Scr Mat Min Exi Min Mat Total 2802 | 6 770 479 246 728 573 Wait 173 | . 24 . . . 149 Move 2358 | . 637 445 245 690 341 Hop . | . . . . . . Pick Up 30 | . 15 1 . 2 12 Fast Attach 8 | . 1 . . . 7 Attach 14 | 2 1 1 . 1 9 Detach . | . . . . . . Swap 26 | . 8 9 . 3 6 Drop 27 | 4 7 4 . 2 10 Fire 165 | . 77 19 1 30 38 Melee . | . . . . . . Ram . | . . . . . . Kick 1 | . . . . . 1 Crush . | . . . . . . Escape Stasis . | . . . . . . Rewire . | . . . . . . Trap . | . . . . . . Miscellaneous . | . . . . . . Route ------- -11/Scrapyard -10/Materials (discovered 5 exits: [*Mat x3] / *Min x2) -10/Mines (discovered 3 exits: [*Mat x2] / *Exi) -10/Exiles -9/Mines (discovered 2 exits: *Mat x2) -8/Materials (discovered 3 exits: Fac / Sto x2) History --------- Turn | Location | Event 6 | -11/Scrapyard | Discovered new exit (range 0) 6 | -11/Scrapyard | Entered Materials 200 | -10/Materials | Discovered new exit (range 6) 278 | -10/Materials | Discovered new exit (range 16) 313 | -10/Materials | Build established: Mutant 497 | -10/Materials | Discovered new exit (range 8) 760 | -10/Materials | Discovered new exit (range 15) 1090 | -10/Materials | Discovered new exit (range 16) 1295 | -10/Materials | Entered Mines 1533 | -10/Mines | Discovered new exit (range 13) 1568 | -10/Mines | Learned location of 1 exit from Materials 1573 | -10/Mines | Core integrity fell below 50% 1611 | -10/Mines | Learned 4 Materials zone layouts 1874 | -10/Mines | Discovered new exit (range 16) 1902 | -10/Mines | Received a Mining Laser from a helpful Derelict 2063 | -10/Mines | Deemed a non-threat by the Exiles lab entrance 2063 | -10/Mines | Discovered new exit (range 5) 2069 | -10/Mines | Entered Exiles 2069 | -10/Exiles | Accompanied by 1 ally 2109 | -10/Exiles | Met 8R-AWN 2135 | -10/Exiles | Met EX-HEX 2199 | -10/Exiles | Met EX-DEC 2205 | -10/Exiles | Learned location of Zion (-6) 2231 | -10/Exiles | Met EX-BIN 2253 | -10/Exiles | Aligned with FarCom system 2255 | -10/Exiles | Given EX-Vault access code 2295 | -10/Exiles | Opened EX-Vault 2330 | -10/Exiles | Warned to stay clear of 0b10 Research branches 2360 | -10/Exiles | Exiles lab attacked by MAIN.C 2445 | -10/Exiles | Discovered new exit (range 10) 2462 | -10/Exiles | Attacked by the Exiles 2464 | -10/Exiles | Entered Mines 2465 | -9/Mines | Assembled infested the area 2482 | -9/Mines | Met a Derelict bent on vengeance 2495 | -9/Mines | Learned Materials stockpile data 2589 | -9/Mines | Found a damaged Exp. Sensor Array with a note attached 2592 | -9/Mines | Found Prototype Device 2646 | -9/Mines | A weapon hastily lodged in a ceiling crevice suddenly fell to the ground 3038 | -9/Mines | Discovered new exit (range 5) 3242 | -9/Mines | Discovered new exit (range 5) 3454 | -9/Mines | Assisted by bots powering up and referring to "LRC-V3" 3653 | -9/Mines | Entered Materials 3653 | -8/Materials | Accompanied by 3 allies 3653 | -8/Materials | Evolved 4 slots: Propulsion x1, Utility x2, Weapon x1 3654 | -8/Materials | Identified exit to Factory 3655 | -8/Materials | Identified exit to Storage 3759 | -8/Materials | Repaired Hrd. Light Armor Plating 3786 | -8/Materials | Repaired Lgt. Treads 3832 | -8/Materials | Repaired Broken Imp. Treads 3835 | -8/Materials | Identified Exp. Sensor Array 4400 | -8/Materials | Core integrity fell below 50% 4418 | -8/Materials | Core integrity fell below 20% 4426 | -8/Materials | Destroyed by Y-45 Defender with Heavy Assault Rifle Last Messages --------------- area. 04370_ Lgt. Deuterium Engine destroyed. 04373_ Imp. Carbon-fiber Leg blasted off. 04374_ R-06 Scavenger collects Aluminum Leg. 04377_ Imp. Carbon-fiber Leg destroyed. 04377_ Hrd. Medium Armor Plating destroyed. 04377_ Critical hit (Blast). 04379_ Beamcaster destroyed. 04380_ H-61 Shepherd heat short circuits Prototype Device. 04383_ Acquired Imp. Carbon-fiber Leg. 04384_ H-61 Shepherd heat short circuits Arm. Treads. 04387_ Electrolaser destroyed. 04387_ Ion Engine destroyed. 04390_ Gatling Laser destroyed. 04392_ Imp. Carbon-fiber Leg destroyed. 04395_ H-61 Shepherd heat short circuits Hvy. Assault Cannon. 04406_ Critical hit (Burn: +37). 04408_ Imp. Heat Sink destroyed. 04414_ Critical hit (Burn: +37). 04425_ U-05 Engineer builds a Wall. Map ----- +----------------------------------------------------+ | ???????????????????????????????????# ### | | ???????????????????????????????????# " # | | ???????????????????????????????????# " # | | ???????????????????????????????????# " # | | ???????????????????????????????????# """ #! | | ????????????????????????????# ?????# "" %+* | | ????????????????????????????# #### """ # " | | ????????????????????????????# """ # " | | ????????????????????????????# """ # " | | ????????????????????????????# " ### | | ???????????????"????????????# #?? | | ???????????????%????????????# #?? | | ??????????????? ????????????######## ####T## #?? | | ??????????????? ???????????????????# #??#### #?? | | ??????????????? ??????????########## #?????# #?? | | ??????????????? ??????????# [ ## #######+### | | ??????????????? ??????????# ## # # | | ??????????????? ??????????# ## # # | | ??????????????# ########### ## # # | | ??????????????# # ] # ## # # | | ??????????????# # # ## + # | | ??????????????#!# """ # ## # # | | ??????????????#%# """ # ## # # | | ??????????????#=#="" """%+ + # # | | ??????????????#!#% T= %# ### ########### | | ??????????????# #=%!!! @# #?# #####?????? | | ??????????????# #=*!% ####+####?# [=[#?????? | | ??????????????# #######;#Y## ##### == #?????? | | ??????????????# ggug% % % %!!#?????? | | ??????????????# % *%= =!!#?????? | | # ## k ### ##### % #?????? | | ##### ##### ####+#######= [#?????? | | #???###???# !=#= [ / ## =#####?????? | | #?????????# *[ [%+%= + ##????????? | | ########??# % ######= ] ## ########### | | ###### #??####+#####?# =##=%#?# """"""" | | #??# #?# """ "" ## #?# """"""" | | > #??# #?# """ """ ## #?# """"""" | | #??# #?# """ S" ## #?# """"""" | | ###### #??# """ #?# ## #?# """"""" | | ####### ##??# """""#?######+##### #?# | | # #???# """""#??????# #???# ### | | # #???# """""#??????# #??## ### | | """ + #???# """ ######## #### ##+####### | | """ # #???# / + #???? | | """ # < #???################# #???? | | # #???????????????????###### ##+####### | | ###########???????????????###########+### | | ??????????????????????????# # "" ! | | ??????????????????????????# # "T | +----------------------------------------------------+ Best States ------------- Heat Dissipation 45 Energy Generation 14 Energy Capacity 250 Matter Stores 300 Matter Capacity 300 Sight Range 20 Terrain Scan Density 10 Armor Coverage 375 Evasion (%) 55 Recoil Reduction 2 Item Schematics ----------------- Hrd. Light Armor Plating | -8/Materials | Scanalyzed Robot Schematics ------------------ None Fabricated ------------ Nothing Alien Tech Used ----------------- None Achievements -------------- None Challenges ------------ None Game ------ Seed AlertTitaniumBroadsword Manual? 0 Play Time 00:22:15 Cumulative 459.8 hours Start 2021.11.10 @ 00:47:01 End 2021.11.10 @ 01:13:02 Sessions 1 Manual Loads 0 Difficulty Rogue Special Mode None Game No. 462 Rogue 462 Adventurer 0 Explorer 0 Win Type - Total 9 Types 8/0/0/1/0/0/0/0/0 Lore% 80 Gallery% 93 Achievement% 70 Wizard Run 0 Options --------- ASCII 0 Keyboard 0 Movement Mouse Keybinds 1 Fullscreen 2 Font 24/Smallcaps Map View 76x50 Tactical HUD 1 Map Filters NONE Filters NONE Steam 1 RUN: c7817212-d5ac-40f4-9cd3-bd5c7636bfbb